[Event "FIDE World Cadets GU12 2022"]
[Site "Batumi"]
[Date "2022.09.26"]
[Round "10.7"]
[White "Haasova, Timea"]
[Black "Aydogan, Arya"]
[Result "1-0"]
[ECO "D04"]
[WhiteElo "1707"]
[BlackElo "1489"]
[Annotator "NA RC"]
[PlyCount "145"]
[EventDate "2022.09.16"]
[EventType "swiss"]
[EventCountry "GEO"]
[SourceTitle "playchess.com"]
[Source "ChessBase"]
[SourceQuality "1"]
[TimeControl "5400+30"]

1. d4 {[%emt 0:01:00]} d5 {[%emt 0:01:00]} 2. Nf3 {[%emt 0:00:00]} Nf6 {[%emt 0:00:00]} 3. e3 {[%emt 0:00:00]} Bf5 {[%emt 0:00:00]} 4. Bd3 {[%emt 0:00:30]} Bxd3 {[%emt 0:00:30]} 5. Qxd3 {[%emt 0:00:00]} c6 {[%emt 0:00:30]} 6. Nbd2 {[%emt 0:02:00]} e6 {[%emt 0:02:30]} 7. O-O {[%emt 0:03:30]} Bd6 {[%emt 0:01:30]} 8. e4 {[%emt 0:01:30]} dxe4 {[%emt 0:00:30]} 9. Nxe4 {[%emt 0:00:30]} Nxe4 {[%emt 0:00:30]} 10. Qxe4 {[%emt 0:00:30]} Nd7 {[%emt 0:00:30]} 11. c3 {[%emt 0:05:30]} Nf6 {[%emt 0:01:30]} 12. Qe2 {[%emt 0:01:30]} h6 {[%emt 0:01:30]} 13. Ne5 {[%emt 0:04:30]} O-O {[%emt 0:01:30]} 14. Bf4 {[%emt 0:03:30]} Qe7 {[%emt 0:03:30]} 15. Rfe1 {[%emt 0:04:30]} Rfd8 {[%emt 0:03:30]} 16. Rad1 {[%emt 0:02:30]} Rac8 {[%emt 0:00:30]} 17. Bg3 {[%emt 0:03:30]} c5 {[%emt 0:04:30]} 18. dxc5 {[%emt 0:04:30]} Bxc5 {[%emt 0:01:30]} 19. Bh4 {[%emt 0:02:30]} g5 {[%emt 0:04:30]} 20. Bg3 {[%emt 0:01:30]} Rxd1 {[%emt 0:02:30]} 21. Rxd1 {[%emt 0:00:30]} Rd8 {[%emt 0:00:30]} 22. h3 {[%emt 0:02:30]} Nd5 {[%emt 0:04:30]} 23. Qh5 {[%emt 0:04:30]} Bb6 {[%emt 0:19:30]} 24. Qxh6 {[%emt 0:06:30]} Qf6 {[%emt 0:00:30]} 25. Qxf6 {[%emt 0:04:30]} Nxf6 {[%emt 0:00:30]} 26. Rxd8+ {[%emt 0:00:30]} Bxd8 {[%emt 0:00:00]} 27. Nc4 {[%emt 0:02:30]} Ne4 {[%emt 0:01:00]} 28. Bb8 {[%emt 0:01:30]} a6 {[%emt 0:00:30]} 29. Kf1 {[%emt 0:01:30]} b5 {[%emt 0:01:30]} 30. Ne3 {[%emt 0:02:30]} Bb6 {[%emt 0:01:30]} 31. Ke2 {[%emt 0:00:30]} f5 {[%emt 0:01:30]} 32. f3 {[%emt 0:01:30]} Nc5 {[%emt 0:01:30]} 33. g3 {[%emt 0:01:30]} Kf7 {[%emt 0:01:30]} 34. Be5 {[%emt 0:03:30]} Nd7 {[%emt 0:03:30]} 35. Bd4 {[%emt 0:01:30]} Bc7 {[%emt 0:00:30]} 36. g4 {[%emt 0:01:30]} f4 {[%emt 0:02:30]} 37. Ng2 {[%emt 0:01:30]} e5 {[%emt 0:00:30]} 38. Bf2 {[%emt 0:01:30]} Ke6 {[%emt 0:01:30]} 39. h4 {[%emt 0:00:30]} gxh4 {[%emt 0:00:30]} 40. Nxh4 {[%emt 0:00:30]} Nf6 {[%emt 0:00:00]} 41. Nf5 {[%emt 0:01:30]} e4 {[%emt 0:02:00]} 42. fxe4 {[%emt 0:04:30]} Nxg4 {[%emt 0:01:30]} 43. Bg1 {[%emt 0:01:30]} Ne5 {[%emt 0:00:30]} 44. Nd4+ {[%emt 0:00:30]} Kd7 {[%emt 0:01:30]} 45. Nf3 {[%emt 0:00:56]} Nc4 {[%emt 0:01:30]} 46. b3 {[%emt 0:00:30]} Nd6 {[%emt 0:00:00]} 47. Kd3 {[%emt 0:00:50]} Nf7 {[%emt 0:01:00]} 48. Bd4 {[%emt 0:01:43]} Ke6 {[%emt 0:00:30]} 49. c4 {[%emt 0:03:28]} bxc4+ {[%emt 0:01:30]} 50. bxc4 {[%emt 0:00:11]} Bd8 {[%emt 0:00:30]} 51. Ba7 {[%emt 0:02:31]} Bf6 {[%emt 0:01:30]} 52. Bb8 {[%emt 0:00:48]} Ng5 {[%emt 0:01:30]} 53. Nxg5+ {[%emt 0:01:41]} Bxg5 {[%emt 0:00:30]} 54. Ke2 {[%emt 0:00:09]} Kd7 {[%emt 0:01:30]} 55. Kf3 {[%emt 0:00:30]} Kc6 {[%emt 0:00:00]} 56. Bxf4 {[%emt 0:00:34]} Be7 {[%emt 0:00:00]} 57. Be3 {[%emt 0:00:00]} Bd6 {[%emt 0:00:30]} 58. Kg4 {[%emt 0:00:45]} Be5 {[%emt 0:01:30]} 59. Kf5 {[%emt 0:00:15]} Bc3 {[%emt 0:00:30]} 60. e5 {[%emt 0:00:30]} Kd7 {[%emt 0:00:30]} 61. Kf6 {[%emt 0:01:05]} Bb2 {[%emt 0:00:00]} 62. Bf4 {[%emt 0:00:02]} Kc6 {[%emt 0:01:00]} 63. Be3 {[%emt 0:01:09]} Kd7 {[%emt 0:00:30]} 64. Kf5 {[%emt 0:00:00]} Ba3 {[%emt 0:01:30]} 65. Bd4 {[%emt 0:00:45]} Ke7 {[%emt 0:00:00]} 66. c5 {[%emt 0:00:54]} Bb4 {[%emt 0:00:00]} 67. c6 {[%emt 0:00:32]} Ba5 {[%emt 0:01:30]} 68. Bc5+ {[%emt 0:00:11]} Kd8 {[%emt 0:01:30]} 69. Bd6 {[%emt 0:00:26]} Bb6 {[%emt 0:00:30]} 70. e6 {[%emt 0:02:13]} Ba5 {[%emt 0:02:30]} 71. c7+ {[%emt 0:00:22]} Kc8 {[%emt 0:02:30]} 72. e7 {[%emt 0:00:30]} Kd7 {[%emt 0:00:00]} 73. e8=Q+ 1-0

[Event "FIDE World Cadets GU12 2022"]
[Site "Batumi"]
[Date "2022.09.26"]
[Round "10.8"]
[White "Imomkuzieva, Nilufarkhon"]
[Black "Maklakova, Naomi"]
[Result "0-1"]
[ECO "C50"]
[WhiteElo "1481"]
[BlackElo "1635"]
[Annotator "NA RC"]
[PlyCount "108"]
[EventDate "2022.09.16"]
[EventType "swiss"]
[EventCountry "GEO"]
[SourceTitle "playchess.com"]
[Source "ChessBase"]
[SourceQuality "1"]
[TimeControl "5400+30"]

1. e4 {[%emt 0:01:00]} e5 {[%emt 0:01:00]} 2. Nf3 {[%emt 0:00:00]} Nc6 {[%emt 0:00:00]} 3. Bc4 {[%emt 0:00:00]} Nf6 {[%emt 0:00:00]} 4. d3 {[%emt 0:00:00]} Bc5 {[%emt 0:00:30]} 5. Nc3 {[%emt 0:00:00]} d6 {[%emt 0:00:30]} 6. h3 {[%emt 0:00:30]} h6 {[%emt 0:00:00]} 7. Be3 {[%emt 0:00:00]} Bb6 {[%emt 0:01:00]} 8. Bxb6 {[%emt 0:01:00]} axb6 {[%emt 0:00:30]} 9. d4 {[%emt 0:00:30]} exd4 {[%emt 0:04:30]} 10. Nxd4 {[%emt 0:00:00]} Ne5 {[%emt 0:02:30]} 11. Be2 {[%emt 0:00:00]} O-O {[%emt 0:04:30]} 12. O-O {[%emt 0:00:30]} Kh8 {[%emt 0:07:30]} 13. f4 {[%emt 0:03:30]} Ng6 {[%emt 0:01:30]} 14. Bc4 {[%emt 0:00:30]} Nxe4 {[%emt 0:11:30]} 15. Nxe4 {[%emt 0:01:30]} d5 {[%emt 0:01:30]} 16. f5 {[%emt 0:06:30]} Ne5 {[%emt 0:08:30]} 17. Ng3 {[%emt 0:15:30]} Nxc4 {[%emt 0:07:30]} 18. f6 {[%emt 0:00:30]} Rg8 {[%emt 0:02:30]} 19. Qh5 {[%emt 0:05:30]} Qf8 {[%emt 0:26:20]} 20. Ngf5 {[%emt 0:07:30]} Bxf5 {[%emt 0:00:30]} 21. Nxf5 {[%emt 0:00:30]} g6 {[%emt 0:00:00]} 22. Qxh6+ {[%emt 0:00:30]} Qxh6 {[%emt 0:00:17]} 23. Nxh6 {[%emt 0:00:30]} Rgf8 {[%emt 0:00:00]} 24. Rf4 {[%emt 0:00:00]} Kh7 {[%emt 0:02:10]} 25. Rh4 {[%emt 0:00:00]} g5 {[%emt 0:00:07]} 26. Rh5 {[%emt 0:00:30]} Kg6 {[%emt 0:00:30]} 27. g4 {[%emt 0:00:30]} Rh8 {[%emt 0:00:12]} 28. Nf5 {[%emt 0:00:30]} Rxh5 {[%emt 0:00:05]} 29. Ne7+ {[%emt 0:00:30]} Kxf6 {[%emt 0:00:30]} 30. Nxd5+ {[%emt 0:00:00]} Ke5 {[%emt 0:00:00]} 31. Nxc7 {[%emt 0:00:00]} Rhh8 {[%emt 0:00:44]} 32. Nxa8 {[%emt 0:00:30]} Rxa8 {[%emt 0:00:00]} 33. b3 {[%emt 0:00:30]} Ne3 {[%emt 0:04:00]} 34. Re1 {[%emt 0:02:30]} Kf4 {[%emt 0:00:06]} 35. a4 {[%emt 0:01:30]} Rd8 {[%emt 0:02:25]} 36. c4 {[%emt 0:04:30]} Rd7 {[%emt 0:03:06]} 37. Kf2 {[%emt 0:03:30]} Rd2+ {[%emt 0:00:45]} 38. Kg1 {[%emt 0:01:30]} Rg2+ {[%emt 0:00:11]} 39. Kh1 {[%emt 0:00:30]} Rb2 {[%emt 0:00:05]} 40. Rc1 {[%emt 0:00:30]} Rxb3 {[%emt 0:01:31]} 41. c5 {[%emt 0:00:30]} bxc5 {[%emt 0:00:30]} 42. Rxc5 {[%emt 0:00:30]} Kg3 {[%emt 0:00:00]} 43. Rc1 {[%emt 0:00:30]} Kxh3 {[%emt 0:00:00]} 44. Kg1 {[%emt 0:00:30]} Nxg4 {[%emt 0:00:00]} 45. Kf1 {[%emt 0:00:30]} f5 {[%emt 0:00:42]} 46. Rc5 {[%emt 0:00:30]} Ne3+ {[%emt 0:01:04]} 47. Ke2 {[%emt 0:00:30]} Kg4 {[%emt 0:00:00]} 48. Re5 {[%emt 0:00:30]} f4 {[%emt 0:00:14]} 49. Re7 {[%emt 0:00:00]} Kg3 {[%emt 0:00:02]} 50. Rg7 {[%emt 0:01:00]} g4 {[%emt 0:00:30]} 51. Kd2 {[%emt 0:00:00]} Kf3 {[%emt 0:00:08]} 52. a5 {[%emt 0:01:00]} g3 {[%emt 0:00:30]} 53. Rg6 {[%emt 0:00:00]} g2 {[%emt 0:00:25]} 54. Rf6 {[%emt 0:00:00]} Rb2+ {[%emt 0:00:30]} 0-1

[Event "FIDE World Cadets GU12 2022"]
[Site "Batumi"]
[Date "2022.09.26"]
[Round "10.9"]
[White "Saparya Ghosh"]
[Black "Sezdbekova, Aizhan"]
[Result "1-0"]
[ECO "D37"]
[WhiteElo "1563"]
[BlackElo "1447"]
[Annotator "NA RC"]
[PlyCount "65"]
[EventDate "2022.09.16"]
[EventType "swiss"]
[EventCountry "GEO"]
[SourceTitle "playchess.com"]
[Source "ChessBase"]
[SourceQuality "1"]
[TimeControl "5400+30"]

1. d4 {[%emt 0:01:00]} Nf6 {[%emt 0:01:00]} 2. c4 {[%emt 0:00:30]} e6 {[%emt 0:00:30]} 3. Nf3 {[%emt 0:00:00]} d5 {[%emt 0:00:30]} 4. Nc3 {[%emt 0:00:00]} Be7 {[%emt 0:00:30]} 5. Bf4 {[%emt 0:00:00]} c6 {[%emt 0:01:30]} 6. e3 {[%emt 0:01:00]} Nbd7 {[%emt 0:00:30]} 7. Bd3 {[%emt 0:07:30]} O-O {[%emt 0:14:30]} 8. O-O {[%emt 0:00:30]} h6 {[%emt 0:11:30]} 9. h3 {[%emt 0:02:30]} Re8 {[%emt 0:04:30]} 10. Rc1 {[%emt 0:01:30]} dxc4 {[%emt 0:05:30]} 11. Bxc4 {[%emt 0:01:30]} Nb6 {[%emt 0:00:30]} 12. Bd3 {[%emt 0:01:30]} Nfd5 {[%emt 0:00:30]} 13. Bg3 {[%emt 0:03:30]} Bd6 {[%emt 0:13:30]} 14. Ne4 {[%emt 0:01:30]} Bxg3 {[%emt 0:01:30]} 15. Nxg3 {[%emt 0:00:30]} f5 {[%emt 0:05:30]} 16. Ne2 {[%emt 0:15:30]} Bd7 {[%emt 0:10:30]} 17. Ne5 {[%emt 0:05:30]} Qf6 {[%emt 0:00:30]} 18. e4 {[%emt 0:05:30]} Nb4 {[%emt 0:03:30]} 19. Bb1 {[%emt 0:00:30]} fxe4 {[%emt 0:07:32]} 20. Nc3 {[%emt 0:04:30]} Qh4 {[%emt 0:04:47]} 21. Nxe4 {[%emt 0:01:30]} Bc8 {[%emt 0:07:01]} 22. Nd6 {[%emt 0:08:30]} Rd8 {[%emt 0:00:20]} 23. Qf3 {[%emt 0:00:30]} Qf6 {[%emt 0:01:08]} 24. Nxc8 {[%emt 0:07:30]} Raxc8 {[%emt 0:00:39]} 25. Qe4 {[%emt 0:00:30]} N4d5 {[%emt 0:01:52]} 26. Rcd1 {[%emt 0:01:30]} Nf4 {[%emt 0:02:24]} 27. Kh2 {[%emt 0:01:30]} a6 {[%emt 0:01:17]} 28. g3 {[%emt 0:00:30]} Nfd5 {[%emt 0:00:11]} 29. Qh7+ {[%emt 0:00:30]} Kf8 {[%emt 0:00:08]} 30. Rd3 {[%emt 0:00:30]} Qg5 {[%emt 0:00:58]} 31. Rf3+ {[%emt 0:01:30]} Nf6 {[%emt 0:00:24]} 32. Bg6 {[%emt 0:01:30]} Nbd5 {[%emt 0:00:39]} 33. Qh8+ {[%emt 0:00:30]} 1-0

[Event "FIDE World Cadets GU12 2022"]
[Site "Batumi"]
[Date "2022.09.26"]
[Round "10.11"]
[White "Kholyavko, Mariya"]
[Black "Gan, Emily Cathay"]
[Result "1-0"]
[ECO "B07"]
[WhiteElo "1421"]
[BlackElo "1550"]
[Annotator "NA RC"]
[PlyCount "67"]
[EventDate "2022.09.16"]
[EventType "swiss"]
[EventCountry "GEO"]
[SourceTitle "playchess.com"]
[Source "ChessBase"]
[SourceQuality "1"]
[TimeControl "5400+30"]

1. d4 {[%emt 0:01:00]} Nf6 {[%emt 0:01:00]} 2. g3 {[%emt 0:00:30]} g6 {[%emt 0:00:30]} 3. Bg2 {[%emt 0:00:30]} Bg7 {[%emt 0:00:30]} 4. e4 {[%emt 0:00:30]} d6 {[%emt 0:00:00]} 5. Nc3 {[%emt 0:00:00]} O-O {[%emt 0:01:00]} 6. Nge2 {[%emt 0:00:00]} Nc6 {[%emt 0:00:30]} 7. h3 {[%emt 0:00:00]} e5 {[%emt 0:00:30]} 8. Be3 {[%emt 0:00:00]} exd4 {[%emt 0:03:30]} 9. Nxd4 {[%emt 0:00:00]} Nxd4 {[%emt 0:04:30]} 10. Bxd4 {[%emt 0:00:00]} Re8 {[%emt 0:03:30]} 11. O-O {[%emt 0:00:00]} c6 {[%emt 0:13:30]} 12. a4 {[%emt 0:00:00]} Be6 {[%emt 0:01:30]} 13. Qd2 {[%emt 0:03:30]} Qd7 {[%emt 0:16:30]} 14. Kh2 {[%emt 0:01:30]} Red8 {[%emt 0:08:30]} 15. Rad1 {[%emt 0:04:30]} Ne8 {[%emt 0:07:30]} 16. Bxg7 {[%emt 0:04:30]} Nxg7 {[%emt 0:00:30]} 17. f4 {[%emt 0:03:30]} f5 {[%emt 0:01:30]} 18. exf5 {[%emt 0:00:30]} Bxf5 {[%emt 0:09:30]} 19. g4 {[%emt 0:07:30]} Be6 {[%emt 0:00:30]} 20. Ne4 {[%emt 0:00:00]} Qe7 {[%emt 0:01:30]} 21. Rfe1 {[%emt 0:00:00]} d5 {[%emt 0:00:30]} 22. Ng5 {[%emt 0:01:30]} Qd6 {[%emt 0:01:30]} 23. Kh1 {[%emt 0:01:30]} Rf8 {[%emt 0:08:20]} 24. c4 {[%emt 0:06:30]} Rad8 {[%emt 0:01:15]} 25. Qe3 {[%emt 0:04:30]} d4 {[%emt 0:02:09]} 26. Nxe6 {[%emt 0:00:30]} Rfe8 {[%emt 0:03:44]} 27. Rxd4 {[%emt 0:04:30]} Qxd4 {[%emt 0:01:09]} 28. Nxd4 {[%emt 0:00:30]} Rxe3 {[%emt 0:00:30]} 29. Rxe3 {[%emt 0:00:00]} Rxd4 {[%emt 0:00:00]} 30. Re7 {[%emt 0:01:00]} Rxc4 {[%emt 0:00:31]} 31. Rxb7 {[%emt 0:00:30]} Rxa4 {[%emt 0:01:15]} 32. Bxc6 {[%emt 0:00:00]} Ra6 {[%emt 0:01:16]} 33. Bd5+ {[%emt 0:00:00]} Kf8 {[%emt 0:00:30]} 34. Rf7+ {[%emt 0:00:30]} 1-0

[Event "FIDE World Cadets GU12 2022"]
[Site "Batumi"]
[Date "2022.09.26"]
[Round "10.12"]
[White "Derlich, Sarah Sima"]
[Black "Khafizova, Diana"]
[Result "0-1"]
[ECO "C41"]
[WhiteElo "1490"]
[BlackElo "1411"]
[Annotator "NA RC"]
[PlyCount "86"]
[EventDate "2022.09.16"]
[EventType "swiss"]
[EventCountry "GEO"]
[SourceTitle "playchess.com"]
[Source "ChessBase"]
[SourceQuality "1"]
[TimeControl "5400+30"]

1. e4 d6 2. d4 Nf6 3. Nc3 Nbd7 {[%emt 0:01:00]} 4. Nf3 {[%emt 0:01:30]} e5 {[%emt 0:00:30]} 5. Bc4 {[%emt 0:00:30]} Be7 {[%emt 0:00:00]} 6. O-O {[%emt 0:00:30]} O-O {[%emt 0:00:00]} 7. Re1 {[%emt 0:01:30]} c6 {[%emt 0:00:30]} 8. a4 {[%emt 0:00:30]} b6 {[%emt 0:00:00]} 9. h3 {[%emt 0:02:30]} Bb7 {[%emt 0:00:00]} 10. Be3 {[%emt 0:04:30]} Qc7 {[%emt 0:03:30]} 11. Qe2 {[%emt 0:12:30]} a6 {[%emt 0:06:30]} 12. Bb3 {[%emt 0:08:30]} b5 {[%emt 0:05:30]} 13. axb5 {[%emt 0:01:30]} axb5 {[%emt 0:00:30]} 14. Rxa8 {[%emt 0:01:30]} Bxa8 {[%emt 0:01:30]} 15. Ra1 {[%emt 0:07:30]} b4 {[%emt 0:02:30]} 16. Bxf7+ {[%emt 0:06:30]} Kxf7 {[%emt 0:08:30]} 17. Ng5+ {[%emt 0:05:30]} Kg8 {[%emt 0:02:30]} 18. Qc4+ {[%emt 0:01:30]} d5 {[%emt 0:04:30]} 19. exd5 {[%emt 0:01:30]} Nb6 {[%emt 0:00:30]} 20. Qb3 {[%emt 0:03:30]} cxd5 {[%emt 0:03:30]} 21. Ne6 {[%emt 0:05:30]} Qc6 {[%emt 0:06:30]} 22. Nxf8 {[%emt 0:01:30]} Kxf8 {[%emt 0:09:30]} 23. dxe5 {[%emt 0:05:30]} d4 {[%emt 0:04:30]} 24. f3 {[%emt 0:03:30]} dxe3 {[%emt 0:05:30]} 25. exf6 {[%emt 0:00:30]} Qxf6 {[%emt 0:03:30]} 26. Ne2 {[%emt 0:06:47]} Qg5 {[%emt 0:06:30]} 27. h4 {[%emt 0:05:27]} Qe5 {[%emt 0:03:30]} 28. Ra7 {[%emt 0:03:16]} Bd5 {[%emt 0:03:30]} 29. Qd3 {[%emt 0:00:44]} Bc4 {[%emt 0:03:33]} 30. Qd4 {[%emt 0:09:50]} Qxd4 {[%emt 0:03:32]} 31. Nxd4 {[%emt 0:00:30]} Bxh4 {[%emt 0:00:08]} 32. Rb7 {[%emt 0:01:21]} Bf2+ {[%emt 0:00:34]} 33. Kh2 {[%emt 0:00:14]} e2 {[%emt 0:00:51]} 34. Nxe2 {[%emt 0:00:30]} Bxe2 {[%emt 0:00:00]} 35. c3 {[%emt 0:00:31]} b3 {[%emt 0:00:27]} 36. f4 {[%emt 0:01:15]} Bd1 {[%emt 0:00:30]} 37. g3 {[%emt 0:00:00]} Bc5 {[%emt 0:00:54]} 38. Kg2 {[%emt 0:00:31]} Na4 {[%emt 0:00:16]} 39. Rb5 {[%emt 0:00:26]} Be7 {[%emt 0:00:00]} 40. Rd5 {[%emt 0:00:57]} Bc2 {[%emt 0:00:05]} 41. Kf3 {[%emt 0:00:35]} Nxb2 {[%emt 0:00:13]} 42. Ke3 {[%emt 0:00:28]} Nc4+ {[%emt 0:00:30]} 43. Kd4 {[%emt 0:00:00]} Nd6 {[%emt 0:00:00]} 0-1

[Event "FIDE World Cadets GU12 2022"]
[Site "Batumi"]
[Date "2022.09.26"]
[Round "10.13"]
[White "Vlasova, Mariya N"]
[Black "Zarkym, Ailin"]
[Result "0-1"]
[ECO "D01"]
[WhiteElo "1456"]
[BlackElo "1376"]
[Annotator "NA RC"]
[PlyCount "79"]
[EventDate "2022.09.16"]
[EventType "swiss"]
[EventCountry "GEO"]
[SourceTitle "playchess.com"]
[Source "ChessBase"]
[SourceQuality "1"]
[TimeControl "5400+30"]

1. d4 {[%emt 0:01:00]} Nf6 {[%emt 0:05:00]} 2. Bf4 {[%emt 0:00:00]} g6 {[%emt 0:00:30]} 3. Nc3 {[%emt 0:00:00]} d5 {[%emt 0:00:30]} 4. Qd2 {[%emt 0:00:30]} Bg7 {[%emt 0:00:30]} 5. Bh6 {[%emt 0:00:00]} O-O {[%emt 0:00:00]} 6. O-O-O {[%emt 0:00:00]} Nbd7 {[%emt 0:01:00]} 7. h4 {[%emt 0:00:30]} Bxh6 {[%emt 0:02:30]} 8. Qxh6 {[%emt 0:00:30]} Ng4 {[%emt 0:00:30]} 9. Qf4 {[%emt 0:00:00]} Ndf6 {[%emt 0:00:30]} 10. Nh3 {[%emt 0:02:00]} Nh5 {[%emt 0:01:30]} 11. Qg5 {[%emt 0:02:30]} c6 {[%emt 0:00:30]} 12. f3 {[%emt 0:00:30]} f6 {[%emt 0:09:30]} 13. Qd2 {[%emt 0:00:00]} Ng3 {[%emt 0:00:30]} 14. fxg4 {[%emt 0:01:00]} Nxh1 {[%emt 0:01:30]} 15. Qe3 {[%emt 0:09:30]} Qc7 {[%emt 0:02:30]} 16. Nf4 {[%emt 0:00:30]} e5 {[%emt 0:00:00]} 17. Nfxd5 {[%emt 0:03:30]} cxd5 {[%emt 0:01:00]} 18. Nxd5 {[%emt 0:00:30]} Qg7 {[%emt 0:00:00]} 19. g3 {[%emt 0:03:30]} Bxg4 {[%emt 0:01:00]} 20. Bg2 {[%emt 0:00:30]} Nxg3 {[%emt 0:00:30]} 21. Qxg3 {[%emt 0:01:30]} Bxe2 {[%emt 0:01:30]} 22. Re1 {[%emt 0:00:00]} Bc4 {[%emt 0:00:30]} 23. b3 {[%emt 0:01:00]} Bxd5 {[%emt 0:00:30]} 24. Bxd5+ {[%emt 0:00:30]} Kh8 {[%emt 0:00:30]} 25. dxe5 {[%emt 0:00:30]} fxe5 {[%emt 0:00:00]} 26. Qxe5 {[%emt 0:02:30]} Qxe5 {[%emt 0:04:00]} 27. Rxe5 {[%emt 0:00:30]} Rab8 {[%emt 0:00:30]} 28. Re7 {[%emt 0:00:00]} b5 {[%emt 0:00:30]} 29. Rxa7 {[%emt 0:01:00]} Rf4 {[%emt 0:00:00]} 30. c4 {[%emt 0:04:30]} bxc4 {[%emt 0:01:00]} 31. bxc4 {[%emt 0:00:00]} Rxh4 {[%emt 0:00:30]} 32. a4 {[%emt 0:01:00]} Rh2 {[%emt 0:00:30]} 33. Ra8 {[%emt 0:00:30]} Rxa8 {[%emt 0:00:30]} 34. Bxa8 {[%emt 0:00:00]} Kg7 {[%emt 0:01:30]} 35. c5 {[%emt 0:02:00]} Rh4 {[%emt 0:00:30]} 36. c6 {[%emt 0:01:30]} Rxa4 {[%emt 0:00:00]} 37. Bb7 {[%emt 0:00:30]} Rc4+ {[%emt 0:01:00]} 38. Kd2 {[%emt 0:00:00]} Kf6 {[%emt 0:00:30]} 39. Kd3 {[%emt 0:00:00]} Rc1 {[%emt 0:00:00]} 40. Kd4 {[%emt 0:01:30]} 0-1

[Event "FIDE World Cadets GU12 2022"]
[Site "Batumi"]
[Date "2022.09.26"]
[Round "10.15"]
[White "Semenova, Vasilisa"]
[Black "Vizcarra Quispe, Ramalia Bellaluz"]
[Result "0-1"]
[ECO "A58"]
[WhiteElo "1332"]
[BlackElo "1429"]
[Annotator "NA RC"]
[PlyCount "72"]
[EventDate "2022.09.16"]
[EventType "swiss"]
[EventCountry "GEO"]
[SourceTitle "playchess.com"]
[Source "ChessBase"]
[SourceQuality "1"]
[TimeControl "5400+30"]

1. d4 {[%emt 0:01:00]} c5 {[%emt 0:01:00]} 2. d5 {[%emt 0:00:30]} Nf6 {[%emt 0:00:30]} 3. c4 {[%emt 0:00:00]} b5 {[%emt 0:00:30]} 4. cxb5 {[%emt 0:00:00]} a6 {[%emt 0:00:30]} 5. bxa6 {[%emt 0:00:30]} e6 {[%emt 0:00:00]} 6. dxe6 {[%emt 0:07:30]} fxe6 {[%emt 0:00:00]} 7. Nf3 {[%emt 0:01:30]} d5 {[%emt 0:01:30]} 8. e3 {[%emt 0:03:30]} Bd6 {[%emt 0:04:30]} 9. b3 {[%emt 0:03:30]} O-O {[%emt 0:01:30]} 10. Bb2 {[%emt 0:00:00]} Qe7 {[%emt 0:02:30]} 11. Be2 {[%emt 0:02:00]} e5 {[%emt 0:00:30]} 12. O-O {[%emt 0:00:30]} Nxa6 {[%emt 0:03:30]} 13. Nc3 {[%emt 0:02:30]} Nc7 {[%emt 0:00:30]} 14. Nb5 {[%emt 0:00:30]} Nxb5 {[%emt 0:01:30]} 15. Bxb5 {[%emt 0:00:30]} Qc7 {[%emt 0:00:30]} 16. h3 {[%emt 0:05:30]} e4 {[%emt 0:04:30]} 17. Bxf6 {[%emt 0:09:30]} Bb7 {[%emt 0:03:30]} 18. Bxg7 {[%emt 0:35:30]} Qxg7 {[%emt 0:01:30]} 19. Nh2 {[%emt 0:00:30]} Kh8 {[%emt 0:05:30]} 20. Qg4 {[%emt 0:01:30]} Qe5 {[%emt 0:01:30]} 21. f4 {[%emt 0:03:30]} exf3 {[%emt 0:02:30]} 22. Nxf3 {[%emt 0:00:00]} Rxf3 {[%emt 0:02:30]} 23. Qxf3 {[%emt 0:03:15]} Qh2+ {[%emt 0:00:30]} 24. Kf2 {[%emt 0:00:30]} Rf8 {[%emt 0:00:00]} 25. Qxf8+ {[%emt 0:00:00]} Bxf8 {[%emt 0:00:00]} 26. a4 {[%emt 0:03:58]} d4 {[%emt 0:00:30]} 27. Be2 {[%emt 0:07:40]} Bg7 {[%emt 0:02:30]} 28. Rad1 {[%emt 0:01:02]} Qxg2+ {[%emt 0:00:30]} 29. Ke1 {[%emt 0:00:50]} Qg3+ {[%emt 0:00:30]} 30. Rf2 {[%emt 0:00:11]} Bh6 {[%emt 0:01:30]} 31. Kf1 {[%emt 0:04:52]} Bxe3 {[%emt 0:00:30]} 32. Rf8+ {[%emt 0:02:18]} Kg7 {[%emt 0:00:00]} 33. Rg8+ {[%emt 0:00:34]} Kxg8 {[%emt 0:00:00]} 34. Bc4+ {[%emt 0:00:30]} Kh8 {[%emt 0:00:00]} 35. Ke2 {[%emt 0:00:30]} Qf3+ {[%emt 0:00:00]} 36. Kd3 {[%emt 0:00:25]} Qxd1# {[%emt 0:00:30]} 0-1

[Event "FIDE World Cadets GU12 2022"]
[Site "Batumi"]
[Date "2022.09.26"]
[Round "10.16"]
[White "Assylkhan, Asiya"]
[Black "Silva, Juliana Figueira The"]
[Result "1-0"]
[ECO "A45"]
[WhiteElo "1424"]
[BlackElo "1328"]
[Annotator "NA RC"]
[PlyCount "99"]
[EventDate "2022.09.16"]
[EventType "swiss"]
[EventCountry "GEO"]
[SourceTitle "playchess.com"]
[Source "ChessBase"]
[SourceQuality "1"]
[TimeControl "5400+30"]

1. d4 {[%emt 0:01:00]} Nf6 {[%emt 0:01:00]} 2. Bf4 {[%emt 0:00:30]} g6 {[%emt 0:00:30]} 3. c3 {[%emt 0:00:30]} Bg7 {[%emt 0:00:00]} 4. h3 {[%emt 0:00:00]} d6 {[%emt 0:02:00]} 5. Nd2 {[%emt 0:00:00]} O-O {[%emt 0:00:30]} 6. e4 {[%emt 0:00:00]} Nfd7 {[%emt 0:02:30]} 7. Ngf3 {[%emt 0:03:00]} e5 {[%emt 0:02:30]} 8. dxe5 {[%emt 0:00:30]} dxe5 {[%emt 0:00:30]} 9. Be3 {[%emt 0:00:30]} Kh8 {[%emt 0:01:30]} 10. g4 {[%emt 0:09:30]} Nc6 {[%emt 0:10:30]} 11. Qc2 {[%emt 0:04:30]} Qe7 {[%emt 0:04:30]} 12. Nb3 {[%emt 0:07:30]} Rd8 {[%emt 0:04:30]} 13. Bg2 {[%emt 0:04:30]} Nb6 {[%emt 0:01:30]} 14. Nfd2 {[%emt 0:08:30]} Be6 {[%emt 0:03:30]} 15. Nc5 {[%emt 0:02:30]} Rab8 {[%emt 0:04:30]} 16. Nxe6 {[%emt 0:00:30]} Qxe6 {[%emt 0:00:00]} 17. b3 {[%emt 0:01:30]} Qe7 {[%emt 0:02:00]} 18. O-O {[%emt 0:03:30]} Nc8 {[%emt 0:04:30]} 19. Rad1 {[%emt 0:03:30]} Nd6 {[%emt 0:01:30]} 20. Rfe1 {[%emt 0:00:30]} Rf8 {[%emt 0:00:30]} 21. Bc5 {[%emt 0:01:30]} b6 {[%emt 0:07:30]} 22. Ba3 {[%emt 0:00:00]} Na5 {[%emt 0:01:30]} 23. Re3 {[%emt 0:11:00]} c5 {[%emt 0:01:30]} 24. Rd3 {[%emt 0:09:30]} Rfd8 {[%emt 0:01:30]} 25. Bb2 {[%emt 0:02:30]} Nc6 {[%emt 0:03:30]} 26. Rd5 {[%emt 0:02:30]} Qc7 {[%emt 0:03:30]} 27. Nf1 {[%emt 0:01:30]} Ne7 {[%emt 0:00:30]} 28. R5d2 {[%emt 0:00:30]} Rd7 {[%emt 0:00:30]} 29. Ne3 {[%emt 0:00:30]} Bh6 {[%emt 0:00:30]} 30. Nd5 {[%emt 0:00:30]} Nxd5 {[%emt 0:00:30]} 31. Rxd5 {[%emt 0:00:00]} Bg7 {[%emt 0:00:30]} 32. Qd3 {[%emt 0:00:00]} Rbd8 {[%emt 0:00:00]} 33. g5 {[%emt 0:02:30]} Kg8 {[%emt 0:02:00]} 34. h4 {[%emt 0:00:30]} h6 {[%emt 0:00:30]} 35. Bh3 {[%emt 0:00:30]} f5 {[%emt 0:00:30]} 36. gxf6 {[%emt 0:00:30]} Bf8 {[%emt 0:00:30]} 37. Bxd7 {[%emt 0:00:30]} Qxd7 {[%emt 0:00:30]} 38. Qg3 {[%emt 0:00:30]} Kh7 {[%emt 0:00:30]} 39. Rxe5 {[%emt 0:02:30]} Qf7 {[%emt 0:01:30]} 40. Qf3 {[%emt 0:00:30]} Rc8 {[%emt 0:00:00]} 41. c4 {[%emt 0:00:30]} b5 {[%emt 0:01:00]} 42. Red5 {[%emt 0:00:30]} Rc7 {[%emt 0:00:30]} 43. Be5 {[%emt 0:00:30]} Rc6 {[%emt 0:00:30]} 44. Bxd6 {[%emt 0:00:30]} Rxd6 {[%emt 0:00:30]} 45. Rxd6 {[%emt 0:00:30]} Bxd6 {[%emt 0:00:30]} 46. Rxd6 {[%emt 0:00:00]} Qc7 {[%emt 0:00:00]} 47. e5 {[%emt 0:00:00]} Kg8 {[%emt 0:00:00]} 48. Qd5+ {[%emt 0:00:30]} Kf8 {[%emt 0:00:30]} 49. Rd8+ {[%emt 0:00:00]} Qxd8 {[%emt 0:00:30]} 50. Qxd8+ {[%emt 0:00:00]} 1-0